fUSD/lending_fUSD_20250721
["ID","MTS","AMOUNT","RATE_DAILY","PERIOD"]
[373595144,1753056641884,-774.22,0.00019178,2]
[373595145,1753056641894,-501.07,0.00019178,2]
[373595148,1753056641903,-861.07,0.00019178,2]
[373595149,1753056641912,-480.0,0.00019178,2]
[373595151,1753056641921,-500.0,0.00019178,2]
[373595153,1753056641930,-480.0,0.00019178,2]
[373595155,1753056641940,-1147.64,0.00019178,2]
[373595157,1753056641949,-1664.78,0.00019178,2]
[373595159,1753056641959,-480.0,0.00019178,2]
[373595161,1753056641968,-480.0,0.00019178,2]
[373595163,1753056641977,-460.0,0.00019178,2]
[373595165,1753056641986,-480.0,0.00019178,2]
[373595167,1753056641996,-953.38,0.00019178,2]
[373595169,1753056642005,-1296.32,0.00019178,2]
[373595171,1753056642014,-590.03733387,0.00019178,2]
[373595173,1753056642023,-480.0,0.00019178,2]
[373595175,1753056642033,-480.0,0.00019178,2]
[373595176,1753056642042,-3215.6,0.00019178,2]
[373595178,1753056642051,-480.0,0.00019178,2]
[373595180,1753056642060,-480.0,0.00019178,2]
[373595182,1753056642070,-1515.57,0.00019178,2]
[373595184,1753056642079,-480.0,0.00019178,2]
[373595186,1753056642088,-480.0,0.00019178,2]
[373595188,1753056642097,-1496.18,0.00019178,2]
[373595190,1753056642108,-480.0,0.00019178,2]
[373595192,1753056642117,-1211.67,0.00019178,2]
[373595194,1753056642126,-480.0,0.00019178,2]
[373595196,1753056642135,-1241.96,0.00019178,2]
[373595198,1753056642145,-480.0,0.00019178,2]
[373595200,1753056642154,-888.76,0.00019178,2]
[373595202,1753056642163,-480.0,0.00019178,2]
[373595204,1753056642172,-480.0,0.00019178,2]
[373595206,1753056642181,-480.0,0.00019178,2]
[373595208,1753056642190,-634.74,0.00019178,2]
[373595210,1753056642199,-460.0,0.00019178,2]
[373595212,1753056642208,-480.0,0.00019178,2]
[373595214,1753056642217,-2483.57,0.00019178,2]
[373595216,1753056642226,-5707.78,0.00019178,2]
[373595218,1753056642235,-480.0,0.00019178,2]
[373595220,1753056642245,-480.0,0.00019178,2]
[373595222,1753056642254,-1465.88,0.00019178,2]
[373595224,1753056642263,-460.0,0.00019178,2]
[373595226,1753056642272,-480.0,0.00019178,2]
[373595228,1753056642283,-2165.28,0.00019178,2]
[373595230,1753056642296,-480.0,0.00019178,2]
[373595232,1753056642305,-480.0,0.00019178,2]
[373595234,1753056642314,-460.0,0.00019178,2]
[373595236,1753056642323,-664.94,0.00019178,2]
[373595238,1753056642333,-460.0,0.00019178,2]
[373595240,1753056642342,-480.0,0.00019178,2]
[373595242,1753056642351,-480.0,0.00019178,2]
[373595244,1753056642360,-480.0,0.00019178,2]
[373595246,1753056642370,-480.0,0.00019178,2]
[373595248,1753056642379,-480.0,0.00019178,2]
[373595249,1753056642388,-1204.36,0.00019178,2]
[373595251,1753056642397,-480.0,0.00019178,2]
[373595253,1753056642406,-480.0,0.00019178,2]
[373595255,1753056642416,-480.0,0.00019178,2]
[373595257,1753056642425,-1421.46,0.00019178,2]
[373595259,1753056642434,-420.0,0.00019178,2]
[373595261,1753056642443,-480.0,0.00019178,2]
[373595263,1753056642452,-480.0,0.00019178,2]
[373595265,1753056642461,-2373.65,0.00019178,2]
[373595267,1753056642470,-406.83722428,0.00019178,2]
[373595269,1753056642480,-480.0,0.00019178,2]
[373595271,1753056642489,-480.0,0.00019178,2]
[373595273,1753056642498,-480.0,0.00019178,2]
[373595275,1753056642508,-480.0,0.00019178,2]
[373595277,1753056642517,-480.0,0.00019178,2]
[373595279,1753056642526,-1033.45,0.00019178,2]
[373595280,1753056642535,-480.0,0.00019178,2]
[373595282,1753056642544,-1170.36,0.00019178,2]
[373595284,1753056642554,-975.02,0.00019178,2]
[373595286,1753056642563,-480.0,0.00019178,2]
[373595288,1753056642572,-601.96352567,0.00019178,2]
[373595290,1753056642581,-480.0,0.00019178,2]
[373595292,1753056642590,-3971.27,0.00019178,2]
[373595295,1753056642600,-480.0,0.00019178,2]
[373595297,1753056642609,-480.0,0.00019178,2]
[373595299,1753056642618,-460.0,0.00019178,2]
[373595301,1753056642627,-480.0,0.00019178,2]
[373595303,1753056642637,-480.0,0.00019178,2]
[373595305,1753056642646,-480.0,0.00019178,2]
[373595307,1753056642655,-1478.48,0.00019178,2]
[373595309,1753056642664,-690.27,0.00019178,2]
[373595311,1753056642673,-480.0,0.00019178,2]
[373595313,1753056642682,-1380.98,0.00019178,2]
[373595315,1753056642691,-480.0,0.00019178,2]
[373595317,1753056642700,-482.33604792,0.00019178,2]
[373595319,1753056642710,-460.0,0.00019178,2]
[373595321,1753056642719,-480.0,0.00019178,2]
[373595323,1753056642728,-480.0,0.00019178,2]
[373595325,1753056642738,-843.09,0.00019178,2]
[373595327,1753056642748,-480.0,0.00019178,2]
[373595329,1753056642758,-480.0,0.00019178,2]
[373595331,1753056642768,-480.0,0.00019178,2]
[373595333,1753056642777,-480.0,0.00019178,2]
[373595335,1753056642787,-709.14,0.00019178,2]
[373595337,1753056642796,-154.14475289,0.00019178,2]
[373595386,1753056643313,-320.05728641,0.00019178,2]
[373595390,1753056643338,-777.70978204,0.00019178,2]
[373595392,1753056643350,-85.00817866,0.00019178,2]
[373595395,1753056643359,-217.39182134,0.00019178,2]
[373595398,1753056643383,-262.60817866,0.00019178,2]
[373595400,1753056643392,-500.0,0.00019178,2]
[373595402,1753056643401,-2949.79,0.00019178,2]
[373595404,1753056643410,-471.08027074,0.00019178,2]
[373595406,1753056643419,-480.0,0.00019178,2]
[373595408,1753056643429,-257.71858404,0.00019178,2]
[373595411,1753056643439,-796.85141596,0.00019178,2]
[373595413,1753056643448,-500.0,0.00019178,2]
[373595415,1753056643457,-500.0,0.00019178,2]
[373595417,1753056643467,-500.0,0.00019178,2]
[373595418,1753056643475,-1557.17,0.00019178,2]
[373595420,1753056643485,-500.0,0.00019178,2]
[373595422,1753056643494,-500.0,0.00019178,2]
[373595425,1753056643503,-500.0,0.00019178,2]
[373595426,1753056643513,-500.0,0.00019178,2]
[373595428,1753056643522,-480.0,0.00019178,2]
[373595430,1753056643531,-500.0,0.00019178,2]
[373595432,1753056643541,-434.33362683,0.00019178,2]
[373595434,1753056643551,-480.0,0.00019178,2]
[373595437,1753056643560,-480.0,0.00019178,2]
[373595438,1753056643569,-215.45062802,0.00019178,2]
[373595440,1753056643578,-480.0,0.00019178,2]
[373595443,1753056643587,-1353.21,0.00019178,2]
[373595444,1753056643596,-480.0,0.00019178,2]
[373595446,1753056643606,-557.61,0.00019178,2]
[373595448,1753056643614,-860.67,0.00019178,2]
[373595450,1753056643623,-5170.75,0.00019178,2]
[373595452,1753056643632,-480.0,0.00019178,2]
[373595454,1753056643641,-1150.29,0.00019178,2]
[373595456,1753056643650,-480.0,0.00019178,2]
[373595458,1753056643660,-480.0,0.00019178,2]
[373595460,1753056643669,-2864.75,0.00019178,2]
[373595462,1753056643678,-690.16,0.00019178,2]
[373595464,1753056643687,-280.76174591,0.00019178,2]
[373595466,1753056643697,-460.0,0.00019178,2]
[373595468,1753056643706,-480.0,0.00019178,2]
[373595470,1753056643717,-480.0,0.00019178,2]
[373595472,1753056643726,-548.28493674,0.00019178,2]
[373595474,1753056643736,-1199.87,0.00019178,2]
[373595476,1753056643745,-480.0,0.00019178,2]
[373595478,1753056643755,-480.0,0.00019178,2]
[373595481,1753056643764,-480.0,0.00019178,2]
[373595483,1753056643773,-2201.96,0.00019178,2]
[373595484,1753056643782,-726.25,0.00019178,2]
[373595487,1753056643793,-3378.54,0.00019178,2]
[373595488,1753056643802,-480.0,0.00019178,2]
[373595490,1753056643811,-1628.21,0.00019178,2]
[373595492,1753056643820,-480.0,0.00019178,2]
[373595495,1753056643830,-480.0,0.00019178,2]
[373595497,1753056643839,-450.35,0.00019178,2]
[373595498,1753056643848,-500.0,0.00019178,2]
[373595500,1753056643857,-2068.88,0.00019178,2]
[373595502,1753056643867,-480.0,0.00019178,2]
[373595505,1753056643877,-480.0,0.00019178,2]
[373595507,1753056643886,-1270.51,0.00019178,2]
[373595509,1753056643896,-480.0,0.00019178,2]
[373595511,1753056643906,-480.0,0.00019178,2]
[373595513,1753056643915,-480.0,0.00019178,2]
[373595514,1753056643925,-2901.61,0.00019178,2]
[373595517,1753056643934,-1590.53,0.00019178,2]
[373595518,1753056643944,-480.0,0.00019178,2]
[373595520,1753056643953,-1027.79,0.00019178,2]
[373595523,1753056643963,-2066.16,0.00019178,2]
[373595525,1753056643973,-1190.41,0.00019178,2]
[373595526,1753056643983,-2013.47,0.00019178,2]
[373595529,1753056643992,-480.0,0.00019178,2]
[373595531,1753056644002,-14571.90313935,0.00019178,2]
[373595533,1753056644015,-2723.03686065,0.00019178,2]
[373595535,1753056644025,-480.0,0.00019178,2]
[373595537,1753056644034,-1399.58438895,0.00019178,2]
[373595539,1753056644047,-72.92561105,0.00019178,2]
[373595541,1753056644057,-500.0,0.00019178,2]
[373595543,1753056644065,-480.0,0.00019178,2]
[373595545,1753056644075,-2958.11,0.00019178,2]
[373595547,1753056644084,-1283.71,0.00019178,2]
[373595549,1753056644094,-480.0,0.00019178,2]
[373595551,1753056644103,-480.0,0.00019178,2]
[373595553,1753056644113,-311.13928094,0.00019178,2]
[373595558,1753056644147,-500.0,0.00019079,2]
[373595560,1753056644157,-22.54788049,0.00019178,2]
[373595562,1753056644167,-480.0,0.00019178,2]
[373595564,1753056644176,-842.64,0.00019178,2]
[373595566,1753056644185,-719.44,0.00019178,2]
[373595568,1753056644194,-460.0,0.00019178,2]
[373595570,1753056644203,-595.83,0.00019178,2]
[373595572,1753056644213,-460.0,0.00019178,2]
[373595574,1753056644222,-480.0,0.00019178,2]
[373595576,1753056644231,-4760.49,0.00019178,2]
[373595578,1753056644241,-480.0,0.00019178,2]
[373595580,1753056644250,-1418.44,0.00019178,2]
[373595581,1753056644259,-480.0,0.00019178,2]
[373595583,1753056644268,-480.0,0.00019178,2]
[373595586,1753056644277,-1443.71,0.00019178,2]
[373595588,1753056644288,-420.0,0.00019178,2]
[373595590,1753056644301,-480.0,0.00019178,2]
[373595591,1753056644310,-480.0,0.00019178,2]
[373595594,1753056644319,-480.0,0.00019178,2]
[373595596,1753056644329,-1428.34,0.00019178,2]
[373595598,1753056644339,-460.0,0.00019178,2]
[373595600,1753056644348,-480.0,0.00019178,2]
[373595602,1753056644358,-480.0,0.00019178,2]
[373595604,1753056644368,-3457.26,0.00019178,2]
[373595605,1753056644378,-480.0,0.00019178,2]
[373595608,1753056644387,-917.85,0.00019178,2]
[373595609,1753056644396,-781.91,0.00019178,2]
[373595611,1753056644406,-2624.4,0.00019178,2]
[373595613,1753056644415,-460.0,0.00019178,2]
[373595615,1753056644424,-480.0,0.00019178,2]
[373595617,1753056644433,-460.0,0.00019178,2]
[373595619,1753056644442,-480.0,0.00019178,2]
[373595622,1753056644452,-198.89750309,0.00019178,2]
[373595624,1753056644461,-480.0,0.00019178,2]
[373595626,1753056644471,-980.37,0.00019178,2]
[373595628,1753056644480,-954.31,0.00019178,2]
[373595630,1753056644489,-480.0,0.00019178,2]
[373595632,1753056644498,-480.0,0.00019178,2]
[373595634,1753056644507,-480.0,0.00019178,2]
[373595636,1753056644517,-2046.61,0.00019178,2]
[373595637,1753056644526,-2412.11,0.00019178,2]
[373595639,1753056644535,-2457.9,0.00019178,2]
[373595642,1753056644546,-480.0,0.00019178,2]
[373595643,1753056644556,-1289.64,0.00019178,2]
[373595646,1753056644567,-480.0,0.00019178,2]
[373595647,1753056644576,-1577.25,0.00019178,2]
[373595649,1753056644585,-480.0,0.00019178,2]
[373595651,1753056644594,-480.0,0.00019178,2]
[373595653,1753056644603,-552.58,0.00019178,2]
[373595655,1753056644612,-480.0,0.00019178,2]
[373595657,1753056644622,-518.47574978,0.00019178,2]
[373595659,1753056644631,-595.47,0.00019178,2]
[373595661,1753056644640,-1647.25,0.00019178,2]
[373595663,1753056644649,-500.0,0.00019178,2]
[373595665,1753056644657,-5760.77,0.00019178,2]
[373595667,1753056644667,-1344.84,0.00019178,2]
[373595669,1753056644676,-516.89,0.00019178,2]
[373595671,1753056644685,-480.0,0.00019178,2]
[373595673,1753056644694,-3073.7,0.00019178,2]
[373595676,1753056644703,-460.0,0.00019178,2]
[373595677,1753056644712,-480.0,0.00019178,2]
[373595679,1753056644721,-480.0,0.00019178,2]
[373595681,1753056644730,-408.20811092,0.00019178,2]
[373595749,1753056645364,315.15927901,0.000211,28]
[373595804,1753056645969,-152.16627323,0.00018972,2]
[373595806,1753056645979,-168.92339002,0.00019079,2]
[373595808,1753056645988,-500.0,0.00019079,2]
[373595810,1753056645998,-500.0,0.00019079,2]
[373595812,1753056646008,-322.38678992,0.00019079,2]
[373595814,1753056646018,-2579.69466834,0.00019129,2]
[373595817,1753056646030,-1162.7,0.00019129,2]
[373595819,1753056646042,-529.47807039,0.00019129,2]
[373595821,1753056646055,-704.27,0.00019129,2]
[373595824,1753056646072,-544.46353124,0.00019129,2]
[373595826,1753056646083,-2152.0,0.00019129,2]
[373595829,1753056646095,-553.71621697,0.00019129,2]
[373595831,1753056646112,-519.62514764,0.00019129,2]
[373595851,1753056646286,-11314.12179638,0.00019129,2]
[373595884,1753056646625,-960.81648626,0.00019129,2]
[373595974,1753056647513,-152.16627323,0.00019008,2]
[373595976,1753056647523,-343.11408278,0.00019129,2]
[373595978,1753056647532,-155.08011511,0.00019168,2]
[373595980,1753056647545,-71.79188908,0.00019178,2]
[373595982,1753056647554,-3037.5785728,0.00019178,2]
[373595984,1753056647566,-933.88522328,0.00019178,2]
[373595987,1753056647581,-351.72620392,0.00019178,2]
[373595989,1753056647590,-480.0,0.00019178,2]
[373595991,1753056647600,-480.0,0.00019178,2]
[373595993,1753056647610,-306.26705976,0.00019178,2]
[373595995,1753056647621,-173.73294024,0.00019178,2]
[373595997,1753056647630,-480.0,0.00019178,2]
[373595999,1753056647640,-480.0,0.00019178,2]
[373596001,1753056647650,-480.0,0.00019178,2]
[373596003,1753056647659,-1759.84,0.00019178,2]
[373596005,1753056647669,-1093.55,0.00019178,2]
[373596007,1753056647679,-904.22,0.00019178,2]
[373596010,1753056647688,-460.0,0.00019178,2]
[373596011,1753056647698,-500.0,0.00019178,2]
[373596014,1753056647708,-558.08,0.00019178,2]
[373596016,1753056647717,-500.0,0.00019178,2]
[373596018,1753056647727,-681.36,0.00019178,2]
[373596020,1753056647736,-500.0,0.00019178,2]
[373596022,1753056647745,-480.0,0.00019178,2]
[373596024,1753056647754,-1458.67,0.00019178,2]
[373596025,1753056647763,-1220.58085976,0.00019178,2]
[373596028,1753056647775,-349.34733163,0.00019178,2]
[373596031,1753056647794,-948.10180861,0.00019178,2]
[373596033,1753056647803,-480.0,0.00019178,2]
[373596034,1753056647813,-421.69125553,0.00019178,2]
[373596036,1753056647823,-1940.8,0.00019178,2]
[373596038,1753056647832,-1230.98,0.00019178,2]
[373596040,1753056647846,-680.94,0.00019178,2]
[373596042,1753056647855,-295.34253583,0.00019178,2]
[373596045,1753056647872,-1875.53746417,0.00019178,2]
[373596047,1753056647882,-480.0,0.00019178,2]
[373596049,1753056647892,-487.22,0.00019178,2]
[373596051,1753056647903,-480.0,0.00019178,2]
[373596053,1753056647913,-480.0,0.00019178,2]
[373596055,1753056647922,-480.0,0.00019178,2]
[373596057,1753056647932,-480.0,0.00019178,2]
[373596059,1753056647941,-480.0,0.00019178,2]
[373596061,1753056647952,-480.0,0.00019178,2]
[373596063,1753056647961,-480.0,0.00019178,2]
[373596065,1753056647970,-480.0,0.00019178,2]
[373596067,1753056647979,-480.0,0.00019178,2]
[373596070,1753056647989,-480.0,0.00019178,2]
[373596072,1753056647999,-501.33,0.00019178,2]
[373596073,1753056648008,-440.0,0.00019178,2]
[373596075,1753056648018,-2100.68118815,0.00019178,2]
[373596113,1753056648388,-152.16627323,0.00019045,2]
[373596115,1753056648398,-278.19334511,0.00019078,2]
[373596117,1753056648407,-11879.63881185,0.00019178,2]
[373596119,1753056648417,-6019.07,0.00019178,2]
[373596121,1753056648427,-866.02,0.00019178,2]
[373596123,1753056648437,-480.0,0.00019178,2]
[373596126,1753056648447,-480.0,0.00019178,2]
[373596127,1753056648457,-480.0,0.00019178,2]
[373596129,1753056648467,-480.0,0.00019178,2]
[373596131,1753056648478,-1758.42,0.00019178,2]
[373596132,1753056648489,-7130.67,0.00019178,2]
[373596133,1753056648500,-480.0,0.00019178,2]
[373596134,1753056648511,-480.0,0.00019178,2]
[373596135,1753056648522,-480.0,0.00019178,2]
[373596136,1753056648533,-500.0,0.00019178,2]
[373596137,1753056648547,-2402.49,0.00019178,2]
[373596138,1753056648558,-760.64,0.00019178,2]
[373596139,1753056648568,-571.39,0.00019178,2]
[373596140,1753056648578,-480.0,0.00019178,2]
[373596141,1753056648588,-2314.18,0.00019178,2]
[373596142,1753056648597,-856.8,0.00019178,2]
[373596143,1753056648607,-480.0,0.00019178,2]
[373596145,1753056648618,-480.0,0.00019178,2]
[373596147,1753056648628,-480.0,0.00019178,2]
[373596149,1753056648638,-480.0,0.00019178,2]
[373596151,1753056648648,-460.0,0.00019178,2]
[373596153,1753056648658,-1946.37,0.00019178,2]
[373596155,1753056648668,-1388.43,0.00019178,2]
[373596157,1753056648678,-480.0,0.00019178,2]
[373596159,1753056648688,-462.37664492,0.00019178,2]
[373596161,1753056648698,-480.0,0.00019178,2]
[373596163,1753056648707,-460.0,0.00019178,2]
[373596165,1753056648717,-480.0,0.00019178,2]
[373596167,1753056648727,-480.0,0.00019178,2]
[373596169,1753056648737,-772.61,0.00019178,2]
[373596171,1753056648747,-480.0,0.00019178,2]
[373596173,1753056648758,-460.0,0.00019178,2]
[373596175,1753056648768,-440.0,0.00019178,2]
[373596177,1753056648778,-500.0,0.00019178,2]
[373596179,1753056648789,-500.0,0.00019178,2]
[373596181,1753056648800,-480.0,0.00019178,2]
[373596183,1753056648811,-460.0,0.00019178,2]
[373596185,1753056648822,-3214.74,0.00019178,2]
[373596187,1753056648833,-1323.93,0.00019178,2]
[373596189,1753056648843,-480.0,0.00019178,2]
[373596191,1753056648853,-462.03131094,0.00019178,2]
[373596193,1753056648863,-373.13178494,0.00019178,2]
[373596195,1753056648873,-150.0,0.00019178,2]
[373596197,1753056648883,-480.0,0.00019178,2]
[373596199,1753056648893,-183.84044712,0.00019178,2]
[373596216,1753056649056,-276.15955288,0.00019178,2]
[373596218,1753056649065,-571.82722564,0.00019178,2]
[373596226,1753056649127,-1266.02277436,0.00019178,2]
[373596228,1753056649137,-1448.13,0.00019178,2]
[373596230,1753056649147,-480.0,0.00019178,2]
[373596232,1753056649156,-480.0,0.00019178,2]
[373596234,1753056649166,-286.3304688,0.00019178,2]
[373596236,1753056649179,-193.6695312,0.00019178,2]
[373596238,1753056649189,-480.0,0.00019178,2]
[373596240,1753056649199,-480.0,0.00019178,2]
[373596242,1753056649209,-621.49,0.00019178,2]
[373596244,1753056649218,-1431.49,0.00019178,2]
[373596246,1753056649228,-481.14667423,0.00019178,2]
[373596248,1753056649237,-2907.1,0.00019178,2]
[373596250,1753056649246,-3889.14,0.00019178,2]
[373596252,1753056649256,-901.51,0.00019178,2]
[373596254,1753056649266,-480.0,0.00019178,2]
[373596256,1753056649275,-480.0,0.00019178,2]
[373596258,1753056649285,-460.0,0.00019178,2]
[373596260,1753056649296,-765.9,0.00019178,2]
[373596262,1753056649306,-480.0,0.00019178,2]
[373596264,1753056649315,-480.0,0.00019178,2]
[373596266,1753056649325,-480.0,0.00019178,2]
[373596268,1753056649334,-2170.0,0.00019178,2]
[373596270,1753056649343,-480.0,0.00019178,2]
[373596272,1753056649353,-480.0,0.00019178,2]
[373596274,1753056649363,-480.0,0.00019178,2]
[373596276,1753056649373,-460.0,0.00019178,2]
[373596278,1753056649382,-480.0,0.00019178,2]
[373596280,1753056649391,-461.03122876,0.00019178,2]
[373596282,1753056649401,-460.0,0.00019178,2]
[373596284,1753056649410,-480.0,0.00019178,2]
[373596286,1753056649420,-460.0,0.00019178,2]
[373596288,1753056649431,-583.99,0.00019178,2]
[373596290,1753056649441,-480.0,0.00019178,2]
[373596292,1753056649450,-460.0,0.00019178,2]
[373596294,1753056649460,-497.52,0.00019178,2]
[373596296,1753056649469,-38045.21,0.00019178,2]
[373596298,1753056649478,-1341.46,0.00019178,2]
[373596300,1753056649488,-598.89,0.00019178,2]
[373596302,1753056649497,-1550.33,0.00019178,2]
[373596304,1753056649506,-480.0,0.00019178,2]
[373596306,1753056649515,-2084.07,0.00019178,2]
[373596308,1753056649525,-460.0,0.00019178,2]
[373596310,1753056649534,-1544.79,0.00019178,2]
[373596312,1753056649545,-480.0,0.00019178,2]
[373596314,1753056649555,-2252.9,0.00019178,2]
[373596316,1753056649564,-3071.31,0.00019178,2]
[373596318,1753056649573,-4742.69,0.00019178,2]
[373596320,1753056649583,-480.56385747,0.00019178,2]
[373596322,1753056649592,-254.28828127,0.00019178,2]
[373596324,1753056649601,-869.06,0.00019178,2]
[373596326,1753056649613,-460.0,0.00019178,2]
[373596328,1753056649622,-460.0,0.00019178,2]
[373596330,1753056649631,-7441.68,0.00019178,2]
[373596332,1753056649641,-435.63020126,0.00019178,2]
[373596334,1753056649650,-1582.46,0.00019178,2]
[373596345,1753056649736,-3997.31,0.00019178,2]
[373596347,1753056649745,-497.23,0.00019178,2]
[373596349,1753056649755,-460.0,0.00019178,2]
[373596351,1753056649763,-480.0,0.00019178,2]
[373596353,1753056649773,-220.26601965,0.00019178,2]
[373596355,1753056649782,-480.0,0.00019178,2]
[373596357,1753056649795,-480.0,0.00019178,2]
[373596359,1753056649805,-460.0,0.00019178,2]
[373596360,1753056649815,-480.0,0.00019178,2]
[373596362,1753056649824,-460.0,0.00019178,2]
[373596364,1753056649833,-653.37,0.00019178,2]
[373596366,1753056649843,-463.37739623,0.00019178,2]
[373596368,1753056649852,-7789.23,0.00019178,2]
[373596370,1753056649862,-3940.99,0.00019178,2]
[373596372,1753056649871,-1063.07,0.00019178,2]
[373596374,1753056649880,-1111.29,0.00019178,2]
[373596376,1753056649889,-480.0,0.00019178,2]
[373596378,1753056649898,-1794.34,0.00019178,2]
[373596380,1753056649908,-480.0,0.00019178,2]
[373596382,1753056649917,-1471.02,0.00019178,2]
[373596384,1753056649926,-480.0,0.00019178,2]
[373596386,1753056649935,-506.01,0.00019178,2]
[373596388,1753056649945,-480.0,0.00019178,2]
[373596390,1753056649954,-953.92,0.00019178,2]
[373596392,1753056649962,-460.0,0.00019178,2]
[373596394,1753056649972,-1291.85,0.00019178,2]
[373596396,1753056649981,-480.0,0.00019178,2]
[373596398,1753056649990,-1355.57,0.00019178,2]
[373596400,1753056649999,-460.0,0.00019178,2]
[373596402,1753056650008,-480.0,0.00019178,2]
[373596404,1753056650017,-2066.27,0.00019178,2]
[373596406,1753056650027,-2264.97,0.00019178,2]
[373596408,1753056650035,-500.0,0.00019178,2]
[373596410,1753056650045,-480.0,0.00019178,2]
[373596412,1753056650055,-500.0,0.00019178,2]
[373596414,1753056650064,-1109.12,0.00019178,2]
[373596416,1753056650073,-480.0,0.00019178,2]
[373596418,1753056650082,-480.0,0.00019178,2]
[373596420,1753056650092,-480.0,0.00019178,2]
[373596422,1753056650100,-500.0,0.00019178,2]
[373596423,1753056650109,-500.0,0.00019178,2]
[373596426,1753056650119,-480.0,0.00019178,2]
[373596428,1753056650129,-460.0,0.00019178,2]
[373596430,1753056650138,-460.83650164,0.00019178,2]
[373596432,1753056650148,-1774.75,0.00019178,2]
[373596434,1753056650158,-480.0,0.00019178,2]
[373596436,1753056650167,-2182.45,0.00019178,2]
[373596438,1753056650176,-510.31,0.00019178,2]
[373596440,1753056650185,-480.0,0.00019178,2]
[373596442,1753056650195,-480.0,0.00019178,2]
[373596444,1753056650204,-717.43,0.00019178,2]
[373596445,1753056650213,-1996.16,0.00019178,2]
[373596448,1753056650222,-480.0,0.00019178,2]
[373596449,1753056650231,-4538.86,0.00019178,2]
[373596452,1753056650240,-2706.05,0.00019178,2]
[373596454,1753056650250,-1214.06,0.00019178,2]
[373596456,1753056650259,-480.0,0.00019178,2]
[373596458,1753056650269,-480.0,0.00019178,2]
[373596460,1753056650278,-4395.64,0.00019178,2]
[373596462,1753056650288,-480.0,0.00019178,2]
[373596464,1753056650301,-630.18081269,0.00019178,2]
[373596466,1753056650310,-480.0,0.00019178,2]
[373596468,1753056650319,-5020.24,0.00019178,2]
[373596470,1753056650329,-460.42005617,0.00019178,2]
[373596472,1753056650339,-480.0,0.00019178,2]
[373596474,1753056650348,-460.0,0.00019178,2]
[373596476,1753056650361,-480.0,0.00019178,2]
[373596478,1753056650371,-302.4102417,0.00019178,2]
[373596479,1753056650380,-460.0,0.00019178,2]
[373596482,1753056650390,-480.0,0.00019178,2]
[373596483,1753056650399,-636.65,0.00019178,2]
[373596485,1753056650409,-460.0,0.00019178,2]
[373596488,1753056650418,-480.0,0.00019178,2]
[373596490,1753056650427,-480.0,0.00019178,2]
[373596492,1753056650436,-460.0,0.00019178,2]
[373596494,1753056650446,-460.0,0.00019178,2]
[373596496,1753056650455,-151.0,0.00019178,2]
[373596498,1753056650466,-3098.03,0.00019178,2]
[373596500,1753056650475,-201.54,0.00019178,2]
[373596502,1753056650484,-22109.0887968,0.00019178,2]
[373596504,1753056650494,-200.0,0.00019193,2]
[373596506,1753056650503,-1000.0,0.000192,2]
[373596508,1753056650512,-150.0,0.00019217,4]